bitfinex/quotes_BTCUSD_20240929
["timestamp","ask_amount","ask_price","bid_price","bid_amount"]
[1727641028211,0.001656,66111.0,66110.0,0.87967193]
[1727641028872,0.001656,66111.0,66110.0,0.88167193]
[1727641029320,0.22668027,66118.0,66117.0,0.43077993]
[1727641029549,0.22668027,66118.0,66117.0,0.68104196]
[1727641029796,0.001656,66126.0,66124.0,0.151231]
[1727641030019,0.001656,66126.0,66124.0,0.25426393]
[1727641030266,0.001656,66126.0,66125.0,0.174228]
[1727641030488,0.001656,66126.0,66125.0,0.353651]
[1727641030711,0.02536395,66126.0,66125.0,0.35119351]
[1727641031421,0.001656,66126.0,66125.0,0.36019351]
[1727641031637,0.001656,66126.0,66125.0,0.37019351]
[1727641031851,0.001656,66126.0,66125.0,0.36119351]
[1727641033025,0.001656,66126.0,66125.0,0.35119351]
[1727641033234,0.001656,66126.0,66125.0,0.37919351]
[1727641036423,0.02536308,66126.0,66125.0,0.37919351]
[1727641041726,0.02536308,66126.0,66125.0,0.37419351]
[1727641042919,0.001656,66126.0,66125.0,0.37419351]
[1727641046126,0.001656,66126.0,66125.0,0.35251594]
[1727641047310,0.001656,66126.0,66125.0,0.43254887]
[1727641048006,0.001656,66126.0,66125.0,0.27726093]
[1727641048449,0.08457582,66129.0,66128.0,0.23125393]
[1727641048913,0.08457582,66129.0,66128.0,0.151221]
[1727641049139,0.10828292,66129.0,66128.0,0.151221]
[1727641049364,0.10795969,66129.0,66128.0,0.23125393]
[1727641049827,0.10795969,66129.0,66128.0,0.24525393]
[1727641050539,0.10795969,66129.0,66128.0,0.25925393]
[1727641050987,0.09203906,66129.0,66128.0,0.179221]
[1727641052329,0.09203906,66129.0,66128.0,0.29588239]
[1727641053682,0.06833196,66129.0,66128.0,0.29588239]
[1727641053898,0.06915996,66129.0,66128.0,0.29588239]
[1727641054130,0.000828,66129.0,66128.0,0.179221]
[1727641054563,0.000828,66129.0,66128.0,0.18177426]
[1727641055266,0.000828,66129.0,66128.0,0.28717426]
[1727641055714,0.000828,66129.0,66128.0,0.284621]
[1727641055923,0.000828,66129.0,66128.0,0.41182239]
[1727641060574,0.02453368,66129.0,66128.0,0.41182239]
[1727641061125,0.000828,66129.0,66128.0,0.41182239]
[1727641061587,0.000828,66129.0,66128.0,0.7937906]
[1727641061814,0.000828,66129.0,66128.0,0.77982735]
[1727641062036,0.000828,66129.0,66128.0,0.76921033]
[1727641062736,0.000828,66129.0,66128.0,0.76521033]
[1727641062964,0.001656,66137.0,66135.0,0.42723793]
[1727641063194,0.001656,66137.0,66135.0,0.58252587]
[1727641063684,0.001656,66137.0,66135.0,0.68752587]
[1727641064119,0.001656,66137.0,66135.0,0.69852587]
[1727641064652,0.001656,66137.0,66135.0,0.68752587]
[1727641064879,0.001656,66137.0,66135.0,0.72103723]
[1727641065592,0.001656,66137.0,66135.0,0.73503723]
[1727641067896,0.0253575,66136.0,66135.0,0.73503723]
[1727641068426,0.0253575,66136.0,66135.0,0.53839294]
[1727641068664,0.0253575,66136.0,66135.0,0.179205]
[1727641072231,0.001656,66136.0,66135.0,0.179205]
[1727641072967,0.176156,66136.0,66135.0,0.179205]
[1727641073468,0.1836944,66136.0,66135.0,0.028]
[1727641073909,0.1836944,66136.0,66133.0,0.151209]
[1727641074163,0.1836944,66136.0,66135.0,0.012]
[1727641074640,0.1836944,66136.0,66135.0,0.006]
[1727641075299,0.1836944,66136.0,66134.0,0.151207]
[1727641075555,0.1836944,66136.0,66133.0,0.151209]
[1727641075858,0.1836944,66136.0,66135.0,0.003]
[1727641076174,0.1836944,66136.0,66135.0,0.006]
[1727641076407,0.1836944,66136.0,66135.0,0.003]
[1727641076638,0.1836944,66136.0,66134.0,0.151207]
[1727641076875,0.04533835,66135.0,66134.0,0.151207]
[1727641077152,0.04533835,66135.0,66133.0,0.003]
[1727641077386,0.05255917,66135.0,66127.0,0.302445]
[1727641077629,0.04533835,66134.0,66130.0,0.151216]
[1727641077864,0.05268886,66133.0,66130.0,0.151216]
[1727641078093,0.00735051,66133.0,66130.0,0.151216]
[1727641078309,0.08430074,66132.0,66130.0,0.151216]
[1727641078554,0.00735051,66133.0,66126.0,0.302452]
[1727641078786,0.00720245,66131.0,66128.0,0.252875]
[1727641079004,0.20375939,66132.0,66128.0,0.252875]
[1727641079228,0.00719786,66130.0,66128.0,0.101654]
[1727641079455,0.04533835,66132.0,66128.0,0.101654]
[1727641079944,0.00010853,66131.0,66129.0,0.152873]
[1727641080169,0.04533835,66132.0,66129.0,0.152873]
[1727641080395,0.04533835,66132.0,66129.0,0.001654]
[1727641080396,0.19655035,66132.0,66129.0,0.001654]
[1727641080625,0.17503053,66131.0,66129.0,0.001654]
[1727641080852,0.17503053,66131.0,66129.0,0.152873]
[1727641080853,0.00010853,66131.0,66129.0,0.152873]
[1727641081111,0.00719786,66130.0,66129.0,0.153873]
[1727641081364,0.00719786,66130.0,66129.0,0.002654]
[1727641082042,0.04533835,66132.0,66129.0,0.153873]
[1727641082497,0.19655135,66132.0,66129.0,0.001654]
[1727641082711,0.15132353,66131.0,66129.0,0.003654]
[1727641082946,0.15852598,66131.0,66129.0,0.003654]
[1727641083167,0.00731098,66131.0,66129.0,0.002654]
[1727641083690,0.151217,66130.0,66129.0,0.004654]
[1727641083894,0.151217,66130.0,66129.0,0.007654]
[1727641084108,0.151217,66130.0,66129.0,0.001654]
[1727641084324,0.05252825,66131.0,66129.0,0.001654]
[1727641084325,0.20374325,66131.0,66129.0,0.001654]
[1727641084545,0.20374325,66131.0,66129.0,0.007654]
[1727641084546,0.00719786,66130.0,66129.0,0.007654]
[1727641084769,0.25491486,66130.0,66129.0,0.007654]
[1727641085014,0.54583199,66130.0,66129.0,0.007654]
[1727641085257,0.45518038,66130.0,66129.0,0.007654]
[1727641085506,0.45718038,66130.0,66129.0,0.007654]
[1727641085730,0.55718038,66130.0,66129.0,0.007654]
[1727641085951,0.55718038,66130.0,66128.0,0.101654]
[1727641085952,0.429419,66129.0,66128.0,0.009308]
[1727641086191,0.429419,66129.0,66122.0,0.0491699]
[1727641086192,0.307633,66123.0,66122.0,0.0491699]
[1727641086407,0.151249,66116.0,66111.0,0.001656]
[1727641086903,0.00714666,66116.0,66111.0,0.001656]
[1727641087136,0.151257,66113.0,66111.0,0.001656]
[1727641087579,0.00711517,66112.0,66111.0,0.001656]
[1727641087823,0.15837317,66112.0,66111.0,0.001656]
[1727641088068,0.15837317,66112.0,66111.0,0.006656]
[1727641089456,0.15837317,66112.0,66111.0,0.010656]
[1727641089698,0.15937317,66112.0,66111.0,0.010656]
[1727641089934,0.15937317,66112.0,66111.0,0.020656]
[1727641089935,0.18408749,66112.0,66111.0,0.020656]
[1727641090201,0.26299604,66112.0,66111.0,0.020656]
[1727641090860,0.35949604,66112.0,66111.0,0.020656]
[1727641092294,0.40477686,66112.0,66111.0,0.020656]
[1727641092518,0.4047204,66112.0,66111.0,0.020656]
[1727641092729,0.40470273,66112.0,66111.0,0.020656]
[1727641093188,0.35749604,66112.0,66111.0,0.001656]
[1727641093411,0.37898841,66112.0,66111.0,0.004656]
[1727641093632,0.33678172,66112.0,66111.0,0.004656]
[1727641093874,0.33678172,66112.0,66111.0,0.001656]
[1727641094134,0.34578172,66112.0,66111.0,0.001656]
[1727641095305,0.26687317,66112.0,66111.0,0.001656]
[1727641096714,0.29059027,66112.0,66111.0,0.001656]
[1727641097185,0.19409027,66112.0,66111.0,0.001656]
[1727641097629,0.17037317,66112.0,66111.0,0.001656]
[1727641098309,0.16637317,66112.0,66111.0,0.001656]
[1727641098543,0.27228249,66112.0,66111.0,0.001656]
[1727641098772,0.26928249,66112.0,66111.0,0.001656]
[1727641099031,0.27428249,66112.0,66111.0,0.001656]
[1727641099243,0.26928249,66112.0,66111.0,0.001656]
[1727641099470,0.26428249,66112.0,66111.0,0.001656]
[1727641099915,0.27028249,66112.0,66111.0,0.001656]
[1727641100130,0.36348249,66112.0,66111.0,0.001656]
[1727641100358,0.39720001,66112.0,66111.0,0.001656]
[1727641100583,0.47990001,66112.0,66111.0,0.001656]
[1727641101527,0.47490001,66112.0,66111.0,0.001656]
[1727641101756,0.46490001,66112.0,66111.0,0.001656]
[1727641101988,0.58590001,66112.0,66111.0,0.003656]
[1727641102214,0.6311067,66112.0,66111.0,0.003656]
[1727641102466,0.56218249,66112.0,66111.0,0.003656]
[1727641102682,0.62979899,66112.0,66111.0,0.003656]
[1727641103664,0.60724537,66112.0,66111.0,0.003656]
[1727641104590,0.56218249,66112.0,66111.0,0.003656]
[1727641105474,0.58590235,66112.0,66111.0,0.003656]
[1727641107526,0.57878718,66112.0,66111.0,0.003656]
[1727641110409,0.58142321,66112.0,66111.0,0.003656]
[1727641110868,0.55506732,66112.0,66111.0,0.003656]
[1727641112785,0.444158,66112.0,66111.0,0.003656]
[1727641113025,0.269258,66112.0,66111.0,0.003656]
[1727641113501,0.29297666,66112.0,66111.0,0.003656]
[1727641113756,0.29097666,66112.0,66111.0,0.003656]
[1727641113995,0.29297666,66112.0,66111.0,0.003656]
[1727641115635,0.29097666,66112.0,66111.0,0.003656]
[1727641115862,0.29297666,66112.0,66111.0,0.003656]
[1727641116092,0.269258,66112.0,66111.0,0.003656]
[1727641116318,0.267258,66112.0,66111.0,0.003656]
[1727641117007,0.40929734,66112.0,66111.0,0.003656]
[1727641117486,0.267258,66112.0,66111.0,0.003656]
[1727641117961,0.267258,66112.0,66111.0,0.002656]
[1727641117962,0.259258,66112.0,66111.0,0.002656]
[1727641118205,0.28297522,66112.0,66111.0,0.002656]
[1727641118640,0.29097522,66112.0,66111.0,0.003656]
[1727641118863,0.28297522,66112.0,66111.0,0.001656]
[1727641119271,0.29097522,66112.0,66111.0,0.001656]
[1727641119976,0.27897522,66112.0,66111.0,0.001656]
[1727641120207,0.28397522,66112.0,66111.0,0.001656]
[1727641120424,0.27997522,66112.0,66111.0,0.001656]
[1727641120644,0.28497522,66112.0,66111.0,0.001656]
[1727641121108,0.27997522,66112.0,66111.0,0.001656]
[1727641121554,0.27897522,66112.0,66111.0,0.001656]
[1727641121814,0.28297522,66112.0,66111.0,0.001656]
[1727641122155,0.27497522,66112.0,66111.0,0.001656]
[1727641122249,0.27997522,66112.0,66111.0,0.001656]
[1727641122553,0.28497522,66112.0,66111.0,0.001656]
[1727641122793,0.27997522,66112.0,66111.0,0.001656]
[1727641123047,0.28397522,66112.0,66111.0,0.001656]
[1727641123522,0.27897522,66112.0,66111.0,0.001656]
[1727641123737,0.27497522,66112.0,66111.0,0.001656]
[1727641123956,0.27897522,66112.0,66111.0,0.001656]
[1727641124175,0.255258,66112.0,66111.0,0.001656]
[1727641124609,0.30039722,66112.0,66111.0,0.001656]
[1727641125332,0.255258,66112.0,66111.0,0.001656]
[1727641125554,0.32796683,66112.0,66111.0,0.001656]
[1727641125790,0.32296683,66112.0,66111.0,0.001656]
[1727641126032,0.32696683,66112.0,66111.0,0.001656]
[1727641127230,0.259258,66112.0,66111.0,0.001656]
[1727641127727,0.34953644,66112.0,66111.0,0.001656]
[1727641127944,0.255258,66112.0,66111.0,0.001656]
[1727641128179,0.36810605,66112.0,66111.0,0.001656]
[1727641128395,0.37210605,66112.0,66111.0,0.001656]
[1727641128660,0.259258,66112.0,66111.0,0.001656]
[1727641129132,0.260258,66112.0,66111.0,0.001656]
[1727641130073,0.256258,66112.0,66111.0,0.001656]
[1727641130305,0.257258,66112.0,66111.0,0.001656]
[1727641130774,0.39267566,66112.0,66111.0,0.001656]
[1727641131475,0.28097532,66112.0,66111.0,0.001656]
[1727641132903,0.257258,66112.0,66111.0,0.001656]
[1727641136030,0.28097538,66112.0,66111.0,0.001656]
[1727641137507,0.43332025,66112.0,66111.0,0.001656]
[1727641140446,0.57856216,66112.0,66111.0,0.001656]
[1727641140688,0.43332025,66112.0,66111.0,0.001656]
[1727641141274,0.40960287,66112.0,66111.0,0.001656]
[1727641141496,0.257258,66112.0,66111.0,0.001656]
[1727641141702,0.41042621,66112.0,66111.0,0.001656]
[1727641142113,0.4002105,66112.0,66111.0,0.001656]
[1727641143133,0.42392801,66112.0,66111.0,0.001656]
[1727641143971,0.57711323,66112.0,66111.0,0.001656]
[1727641145293,0.55339572,66112.0,66111.0,0.001656]
[1727641147507,0.4022105,66112.0,66111.0,0.001656]
[1727641147770,0.4072105,66112.0,66111.0,0.001656]
[1727641147996,0.5012105,66112.0,66111.0,0.001656]
[1727641148205,0.52492992,66112.0,66111.0,0.001656]
[1727641148626,0.52392992,66112.0,66111.0,0.001656]
[1727641148852,0.52492992,66112.0,66111.0,0.002656]
[1727641149306,0.53092992,66112.0,66111.0,0.002656]
[1727641149761,0.54292992,66112.0,66111.0,0.003656]
[1727641151314,0.5192105,66112.0,66111.0,0.003656]
[1727641154188,0.54293003,66112.0,66111.0,0.003656]
[1727641154405,0.55293003,66112.0,66111.0,0.003656]
[1727641154855,0.77639373,66112.0,66111.0,0.003656]
[1727641155623,0.7526742,66112.0,66111.0,0.003656]
[1727641156362,0.258281,66102.0,66101.0,0.22668027]
[1727641156611,0.4257092,66102.0,66101.0,0.22668027]
[1727641156883,0.4257092,66102.0,66100.0,0.001656]
[1727641156884,0.258283,66101.0,66100.0,0.001656]
[1727641157101,0.268283,66101.0,66100.0,0.001656]
[1727641157334,0.3483896,66094.0,66088.0,0.0496497]
[1727641157553,0.44374536,66094.0,66088.0,0.0496497]
[1727641157784,0.153315,66087.0,66083.0,0.0774]
[1727641158027,0.40651571,66087.0,66083.0,0.0774]
[1727641158248,0.253322,66084.0,66083.0,0.0774]
[1727641158492,0.37549405,66084.0,66083.0,0.0774]
[1727641158718,0.45517692,66084.0,66083.0,0.0774]
[1727641158933,0.45317692,66084.0,66083.0,0.0774]
[1727641159587,0.5912546,66084.0,66083.0,0.0774]
[1727641160021,0.5892546,66084.0,66083.0,0.0774]
[1727641160485,0.45317692,66084.0,66083.0,0.0774]
[1727641160716,0.45317692,66084.0,66083.0,0.0784]
[1727641160717,0.45417692,66084.0,66083.0,0.0784]
[1727641160938,0.45517692,66084.0,66083.0,0.0784]
[1727641161371,0.45317692,66084.0,66083.0,0.0774]
[1727641161598,0.45317692,66084.0,66083.0,0.0784]
[1727641161599,0.43045096,66084.0,66083.0,0.0784]
[1727641162062,0.42945096,66084.0,66083.0,0.066574]
[1727641163922,0.42945096,66084.0,66083.0,0.06823]
[1727641164408,0.42945096,66084.0,66083.0,0.06923]
[1727641164650,0.4531773,66084.0,66083.0,0.06823]
[1727641164880,0.43045096,66084.0,66083.0,0.06823]
[1727641165368,0.251322,66084.0,66083.0,0.06823]
[1727641167265,0.37349405,66084.0,66083.0,0.06823]
[1727641167502,0.37549405,66084.0,66083.0,0.06823]
[1727641167965,0.488703,66084.0,66083.0,0.06823]
[1727641168225,0.51242942,66084.0,66083.0,0.06823]
[1727641168455,0.65572393,66084.0,66083.0,0.06823]
[1727641169160,0.65472393,66084.0,66083.0,0.06823]
[1727641169870,0.54151498,66084.0,66083.0,0.06823]
[1727641170338,0.54251498,66084.0,66083.0,0.06823]
[1727641170810,0.54151498,66084.0,66083.0,0.06823]
[1727641171050,0.54251498,66084.0,66083.0,0.06823]
[1727641171285,0.51878856,66084.0,66083.0,0.06823]
[1727641171990,0.54251526,66084.0,66083.0,0.06823]
[1727641172487,0.55835068,66084.0,66083.0,0.06823]
[1727641173541,0.55635068,66084.0,66083.0,0.06823]
[1727641173775,0.55835068,66084.0,66083.0,0.06823]
[1727641174015,0.55735068,66084.0,66083.0,0.06823]
[1727641174239,0.55635068,66084.0,66083.0,0.06823]
[1727641174461,0.55835068,66084.0,66083.0,0.06823]
[1727641175179,0.41505617,66084.0,66083.0,0.06823]
[1727641176142,0.26915742,66084.0,66083.0,0.06823]
[1727641176410,0.26915742,66084.0,66083.0,0.16693]
[1727641176643,0.35966556,66084.0,66083.0,0.16693]
[1727641176878,0.36049356,66084.0,66083.0,0.16693]
[1727641177125,0.26798542,66084.0,66083.0,0.16693]
[1727641177366,0.35949356,66084.0,66083.0,0.16693]
[1727641177597,0.36049356,66084.0,66083.0,0.16693]
[1727641177849,0.35949356,66084.0,66083.0,0.16693]
[1727641178086,0.33686693,66084.0,66083.0,0.16793]
[1727641179718,0.33786693,66084.0,66083.0,0.16693]
[1727641180162,0.33686693,66084.0,66083.0,0.16693]
[1727641180385,0.33886693,66084.0,66083.0,0.16693]
[1727641180610,0.27098542,66084.0,66083.0,0.16693]
[1727641180833,0.26798542,66084.0,66083.0,0.16693]
[1727641181274,0.33987919,66084.0,66083.0,0.16693]
[1727641181556,0.33687919,66084.0,66083.0,0.16693]
[1727641181790,0.26998542,66084.0,66083.0,0.16693]
[1727641182446,0.26898542,66084.0,66083.0,0.16693]
[1727641182657,0.27198542,66084.0,66083.0,0.16693]
[1727641183098,0.26798542,66084.0,66083.0,0.16693]
[1727641183326,0.27098542,66084.0,66083.0,0.16693]
[1727641183620,0.36251045,66084.0,66083.0,0.16693]
[1727641183840,0.36351045,66084.0,66083.0,0.16693]
[1727641184071,0.35851045,66084.0,66083.0,0.16693]
[1727641184298,0.35951045,66084.0,66083.0,0.16693]
[1727641184512,0.36251045,66084.0,66083.0,0.16693]
[1727641184980,0.36351045,66084.0,66083.0,0.16693]
[1727641185433,0.36251045,66084.0,66083.0,0.16693]
[1727641185644,0.27198542,66084.0,66083.0,0.16693]
[1727641185863,0.29871112,66084.0,66083.0,0.16693]
[1727641186366,0.29171112,66084.0,66083.0,0.16693]
[1727641186594,0.29571112,66084.0,66083.0,0.16693]
[1727641187282,0.29671112,66084.0,66083.0,0.16693]
[1727641187495,0.29171112,66084.0,66083.0,0.16693]
[1727641187722,0.40786741,66084.0,66083.0,0.16693]
[1727641188678,0.41086741,66084.0,66083.0,0.16693]
[1727641189365,0.41186741,66084.0,66083.0,0.16693]
[1727641189595,0.29871112,66084.0,66083.0,0.16693]
[1727641189808,0.29171112,66084.0,66083.0,0.16693]
[1727641190036,0.29771112,66084.0,66083.0,0.16693]
[1727641193416,0.27398542,66084.0,66083.0,0.16693]
[1727641196558,0.40977297,66084.0,66083.0,0.16693]
[1727641197247,0.02266342,66084.0,66083.0,0.16693]
[1727641197490,0.13611617,66084.0,66083.0,0.16693]
[1727641197702,0.09759632,66084.0,66083.0,0.16693]
[1727641197937,0.006828,66084.0,66083.0,0.16693]
[1727641198159,0.003828,66084.0,66083.0,0.16693]
[1727641198387,0.004828,66084.0,66083.0,0.16693]
[1727641198842,0.003828,66084.0,66083.0,0.16693]
[1727641199139,0.000828,66084.0,66083.0,0.16693]
[1727641199362,0.002828,66084.0,66083.0,0.16793]
[1727641199578,0.09259632,66084.0,66083.0,0.16693]
[1727641199802,0.000828,66084.0,66083.0,0.16693]
[1727641200015,0.09259632,66084.0,66083.0,0.16793]
[1727641200451,0.001828,66084.0,66083.0,0.16793]
[1727641200941,0.02555191,66084.0,66083.0,0.319254]
[1727641201149,0.11736294,66084.0,66083.0,0.16793]
[1727641201364,0.04045594,66084.0,66083.0,0.16793]
[1727641201596,0.1529443,66084.0,66083.0,0.16793]
[1727641201841,0.15298903,66084.0,66083.0,0.16793]
[1727641202107,0.140085,66084.0,66083.0,0.16793]
[1727641202361,0.139085,66084.0,66083.0,0.16693]
[1727641202608,0.138085,66084.0,66083.0,0.16793]
[1727641202823,0.02555191,66084.0,66083.0,0.16793]
[1727641203046,0.1173826,66084.0,66083.0,0.16793]
[1727641203278,0.1173826,66084.0,66083.0,0.16893]
[1727641203279,0.02555191,66084.0,66083.0,0.16893]
[1727641203501,0.001828,66084.0,66083.0,0.320254]
[1727641203726,0.11535667,66084.0,66083.0,0.320254]
[1727641203990,0.001828,66084.0,66083.0,0.320254]
[1727641204297,0.001828,66084.0,66083.0,0.318254]
[1727641204298,0.09263865,66084.0,66083.0,0.318254]
[1727641204705,0.09163865,66084.0,66083.0,0.318254]
[1727641205146,0.09263865,66084.0,66083.0,0.318254]
[1727641205403,0.09263865,66084.0,66083.0,0.3994093]
[1727641205404,0.001828,66084.0,66083.0,0.3994093]
[1727641205627,0.000828,66084.0,66083.0,0.3984093]
[1727641205914,0.06992698,66084.0,66083.0,0.3984093]
[1727641206153,0.001828,66084.0,66083.0,0.319254]
[1727641206367,0.000828,66084.0,66083.0,0.318254]
[1727641206594,0.001828,66084.0,66083.0,0.319254]
[1727641206852,0.02454925,66084.0,66083.0,0.318254]
[1727641207325,0.02554925,66084.0,66083.0,0.319254]
[1727641207778,0.02654925,66084.0,66083.0,0.319254]
[1727641207999,0.002828,66084.0,66083.0,0.319254]
[1727641208253,0.001828,66084.0,66083.0,0.319254]
[1727641208700,0.002828,66084.0,66083.0,0.319254]
[1727641217049,0.002828,66084.0,66083.0,0.002656]
[1727641217267,0.24590181,66084.0,66083.0,0.002656]
[1727641217733,0.29140187,66084.0,66083.0,0.002656]
[1727641217951,0.29040187,66084.0,66083.0,0.002656]
[1727641218170,0.29040187,66084.0,66083.0,0.001656]
[1727641218438,0.26667867,66084.0,66083.0,0.001656]
[1727641218654,0.36088887,66084.0,66083.0,0.001656]
[1727641218873,0.36088887,66084.0,66083.0,0.002656]
[1727641219152,0.2483602,66084.0,66083.0,0.001656]
[1727641219601,0.2483602,66084.0,66083.0,0.002656]
[1727641219827,0.2473602,66084.0,66083.0,0.001656]
[1727641220934,0.2503602,66084.0,66083.0,0.001656]
[1727641221149,0.2533602,66084.0,66083.0,0.001656]
[1727641221391,0.27708663,66084.0,66083.0,0.001656]
[1727641221596,0.4260368,66084.0,66083.0,0.001656]
[1727641221845,0.4290402,66084.0,66083.0,0.001656]
[1727641222061,0.29292205,66084.0,66083.0,0.001656]
[1727641222776,0.28992205,66084.0,66083.0,0.001656]
[1727641222982,0.56152205,66084.0,66083.0,0.001656]
[1727641223414,0.53779562,66084.0,66083.0,0.001656]
[1727641224104,0.62095092,66084.0,66083.0,0.001656]
[1727641224324,0.62395092,66084.0,66083.0,0.001656]
[1727641228827,0.6325661,66084.0,66083.0,0.001656]
[1727641230865,0.65629358,66084.0,66083.0,0.001656]
[1727641231583,0.80942684,66084.0,66083.0,0.001656]
[1727641232074,0.80842684,66084.0,66083.0,0.001656]
[1727641232528,0.81842684,66084.0,66083.0,0.001656]
[1727641232762,0.80842684,66084.0,66083.0,0.001656]
[1727641233202,0.82142684,66084.0,66083.0,0.001656]
[1727641233426,0.82942684,66084.0,66083.0,0.001656]
[1727641233659,0.80569936,66084.0,66083.0,0.001656]
[1727641233942,0.79769936,66084.0,66083.0,0.001656]
[1727641234157,0.80869936,66084.0,66083.0,0.001656]
[1727641235268,0.6555661,66084.0,66083.0,0.001656]
[1727641236914,0.67929592,66084.0,66083.0,0.001656]
[1727641238084,0.6555661,66084.0,66083.0,0.001656]
[1727641240162,0.5754108,66084.0,66083.0,0.001656]
[1727641240412,0.6555661,66084.0,66083.0,0.001656]
[1727641240658,0.67929595,66084.0,66083.0,0.001656]
[1727641241834,0.68193293,66084.0,66083.0,0.001656]
[1727641242046,0.67929595,66084.0,66083.0,0.001656]
[1727641242512,0.83215265,66084.0,66083.0,0.001656]
[1727641243558,0.8084228,66084.0,66083.0,0.001656]
[1727641246083,0.80839515,66084.0,66083.0,0.001656]
[1727641246548,0.75196985,66084.0,66083.0,0.001656]
[1727641246761,0.83212515,66084.0,66083.0,0.001656]
[1727641247882,0.80839515,66084.0,66083.0,0.001656]
[1727641252288,0.83212492,66084.0,66083.0,0.001656]
[1727641253460,0.84212492,66084.0,66083.0,0.001656]
[1727641254387,0.68929587,66084.0,66083.0,0.001656]
[1727641255560,0.6655661,66084.0,66083.0,0.001656]
[1727641258814,0.68929693,66084.0,66083.0,0.001656]
[1727641260858,0.68929693,66084.0,66072.0,0.000827]
[1727641260859,0.158347,66073.0,66072.0,0.000827]
[1727641261120,0.3485023,66073.0,66072.0,0.000827]
[1727641261612,0.5214023,66073.0,66072.0,0.000827]
[1727641261860,0.53723772,66073.0,66072.0,0.000827]
[1727641262329,0.55123772,66073.0,66072.0,0.000827]
[1727641262553,0.55916253,66073.0,66072.0,0.000827]
[1727641262794,0.56180038,66073.0,66072.0,0.000827]
[1727641263028,0.56780038,66073.0,66072.0,0.000827]
[1727641263275,0.59153448,66073.0,66072.0,0.000827]
[1727641263528,0.56180038,66073.0,66072.0,0.000827]
[1727641263756,0.59880038,66073.0,66072.0,0.000827]
[1727641263993,0.61280038,66073.0,66072.0,0.000827]
[1727641264243,0.82210881,66073.0,66072.0,0.000827]
[1727641264485,0.59880038,66073.0,66072.0,0.000827]
[1727641264717,0.61280038,66073.0,66072.0,0.000827]
[1727641264946,0.39497557,66073.0,66072.0,0.000827]
[1727641265908,0.4035679,66073.0,66072.0,0.000827]
[1727641266623,0.42730219,66073.0,66072.0,0.000827]
[1727641267071,0.4035679,66073.0,66072.0,0.000827]
[1727641269360,0.4807679,66073.0,66072.0,0.000827]
[1727641269614,0.62090291,66073.0,66072.0,0.000827]
[1727641269883,0.62090291,66073.0,66062.0,0.001654]
[1727641269884,0.2385253,66063.0,66062.0,0.001654]
[1727641270107,0.3385253,66063.0,66062.0,0.001654]
[1727641270382,0.3485253,66063.0,66062.0,0.001654]
[1727641270617,0.3485253,66063.0,66056.0,0.00259]
[1727641270618,0.168379,66059.0,66056.0,0.00259]
[1727641270875,0.3715343,66059.0,66056.0,0.00259]
[1727641271577,0.39527399,66059.0,66056.0,0.00259]
[1727641271822,0.40927399,66059.0,66056.0,0.00259]
[1727641272088,0.512409,66059.0,66056.0,0.00259]
[1727641272558,0.526409,66059.0,66056.0,0.00259]
[1727641272804,0.017,66057.0,66056.0,0.00259]
[1727641273043,0.291384,66057.0,66056.0,0.00259]
[1727641274225,0.401084,66057.0,66056.0,0.00259]
[1727641274455,0.3485553,66050.0,66049.0,0.0493598]
[1727641274685,0.258405,66048.0,66047.0,0.22668027]
[1727641274908,0.258405,66048.0,66040.0,0.22668027]
[1727641274909,0.258411,66045.0,66040.0,0.22668027]
[1727641275129,0.3385663,66045.0,66040.0,0.22668027]
[1727641275367,0.3385763,66041.0,66040.0,0.22668027]
[1727641275831,0.251427,66038.0,66037.0,0.0808]
[1727641276069,0.47152887,66038.0,66037.0,0.0808]
[1727641276363,0.4488565,66038.0,66037.0,0.0808]
[1727641276574,0.47259942,66038.0,66037.0,0.0808]
[1727641277027,0.47759942,66038.0,66037.0,0.0808]
[1727641277257,0.49843484,66038.0,66037.0,0.0808]
[1727641277491,0.49343484,66038.0,66037.0,0.0808]
[1727641277709,0.49643484,66038.0,66037.0,0.0808]
[1727641277933,0.50443484,66038.0,66037.0,0.0808]
[1727641278416,0.41386708,66038.0,66037.0,0.0808]
[1727641278639,0.42186708,66038.0,66037.0,0.0808]
[1727641278883,0.41586708,66038.0,66037.0,0.0808]
[1727641279343,0.42386708,66038.0,66037.0,0.0808]
[1727641279778,0.53710721,66038.0,66037.0,0.0808]
[1727641280005,0.53510721,66038.0,66037.0,0.0808]
[1727641280458,0.39812416,66038.0,66037.0,0.0808]
[1727641281134,0.37141772,66038.0,66037.0,0.0808]
[1727641281371,0.29126242,66038.0,66037.0,0.0808]
[1727641281656,0.29126242,66038.0,66037.0,0.181228]
[1727641285620,0.28326242,66038.0,66037.0,0.181228]
[1727641285857,0.29126242,66038.0,66037.0,0.181228]
[1727641286729,0.27526242,66038.0,66037.0,0.181228]
[1727641286959,0.28326242,66038.0,66037.0,0.181228]
[1727641289716,0.27526242,66038.0,66037.0,0.181228]
[1727641290141,0.27426242,66038.0,66037.0,0.181228]
[1727641290810,0.28126242,66038.0,66037.0,0.181228]
[1727641291731,0.27426242,66038.0,66037.0,0.181228]
[1727641292032,0.28226242,66038.0,66037.0,0.181228]
[1727641292472,0.27426242,66038.0,66037.0,0.181228]
[1727641292935,0.28126242,66038.0,66037.0,0.181228]
[1727641295536,0.30500511,66038.0,66037.0,0.181228]
[1727641296950,0.28126242,66038.0,66037.0,0.181228]
[1727641300696,0.27426242,66038.0,66037.0,0.181228]
[1727641300956,0.31955387,66038.0,66037.0,0.181228]
[1727641301188,0.31755387,66038.0,66037.0,0.181228]
[1727641301416,0.27226242,66038.0,66037.0,0.181228]
[1727641301643,0.27726242,66038.0,66037.0,0.181228]
[1727641302400,0.3451996,66038.0,66037.0,0.181228]
[1727641302884,0.27726242,66038.0,66037.0,0.181228]
[1727641303144,0.74150143,66038.0,66037.0,0.181228]
[1727641303403,0.50439355,66038.0,66037.0,0.081628]
[1727641303621,0.61772956,66038.0,66037.0,0.081628]
[1727641303869,0.50439355,66038.0,66037.0,0.081628]
[1727641307047,0.52813695,66038.0,66037.0,0.081628]
[1727641308491,0.50439355,66038.0,66037.0,0.081628]
[1727641308712,0.35741772,66038.0,66037.0,0.081628]
[1727641310152,0.35741772,66038.0,66037.0,0.175128]